{"text_format":"1","workbook":"xlsx","n_sheets":4,"sheets":["Damer","Herrer","Ark2","Ark3"],"not_rendered":{"charts":0,"images":0,"macros":0,"external_links":0,"defined_names":0,"comments":0,"pivot_tables":0},"unopened":[],"bounds":{"document_bytes":16777216,"sheet_cells":100000,"rows_first":2000,"rows_last":500,"rows_between":2000,"halvings":0,"cell_chars":16384,"cell_head_chars":4096},"cells_cut":0,"cells_raw":0,"read":"whole","date_system":"1900"}

{"sheet":"Damer","index":0,"n_rows":18,"n_cols":43,"rows_kept":18,"cut":false,"hidden":false,"merged":[]}
["Navn","Klubb","Team","Klasse","F.år","Skikrets","Total","Plast","Sum","NC Vikersund 30.11","NC Vikersund 01.12","WC Lillehammer 07.12","COC Cup Notodden 13.12","COC Notodden 14.12","WC Hinterzarten 21.12","WC Hinterzarten 22.12","WC Chaikovsky 03.01","WC Chaikovsky 04.01","NC Lysgårdsbakken 04.01","NC Lysgårdsbakken 05.01","WC Sapporo 11.01","WC Sapporo 12.01","WC Zao 18.01","WC Zao 19.01","WC Planica 25.01","WC Planica 26.01","NC Sprova 226.01","JR VM Val di Flemme 28.01","NJ Rovaniemi 01.02","NC Lønnberget 08.02","NC Lønnberget 09.02","OL Sochi 11.02","NC Granåsen 15.02","COC Lahti 15-16.2","NC Holmenkollen 01.03.01","NC Holmenkollen 01.03.02","COC Falun 01.03-02.03","WC Rasnov 01.03-02.03","WC Holmenkollen 08.03","WC Falun 15.03","NM Junior  Mo 15.03","NM Senior Trysil 12.03","NM Skarbakken 29.03"]
["Maren Lundby","Kolbukameratene","Lillehammerhopp","K NC Elite",1994,"Oppland Skikrets",{"$f":"SUM(H2:I2)","v":17382},3521,{"$f":"SUM(J2:BA2)","v":13861},null,null,750,null,null,650,595,830,750,null,null,565,511,910,910,810,870,null,480,null,null,null,830,null,null,null,null,null,1860,850,690,null,500,500]
["Line Jahr","Vikersund IF","Lillehammerhopp","K NC Elite",1984,"Buskerud Skikrets",16005,3509,12496,140,100,550,null,null,546,770,710,710,null,null,670,770,710,830,630,670,null,null,null,null,null,810,null,null,null,null,null,1380,810,710,null,490,490]
["Gyda Enger","Hernes IL","Lillehammerhopp","K NC Elite",1993,"Hedmark Skikrets",14704,3240,11464,null,null,490,693,693,462,518,870,670,null,null,469,483,497,504,580,610,null,null,null,null,null,546,null,null,null,null,null,1126,830,483,null,470,470]
["Helena Olsson Smeby","Byåsen Skiklubb",null,"K Elite",null,"Sør-Tr.lag Skikrets",11686,2331,9355,null,null,730,null,null,910,910,610,630,null,null,null,null,595,910,790,730,null,null,null,null,null,null,null,null,null,null,null,1480,null,580,null,null,480]
["Anna Odine Strøm","Alta IF","Hedmarkhopp","K NC B",1998,"Finnmark",11202,1919,9283,null,null,476,665,686,448,434,null,null,500,500,null,null,null,null,null,null,null,414,200,200,200,710,null,1365,null,null,null,1036,null,525,null,462,462]
["Anette Sagen","Helfjell IL","Flying Team Vikersund","K NC elite",1985,"Nordland Skikrets",6488,490,5998,130,null,525,700,700,518,427,null,null,null,null,null,null,670,539,null,null,null,null,null,null,null,null,null,null,300,300,null,null,650,539]
["Anniken Mork","Ready",null,"K NC B",1991,"Oslo",6319,1880,4439,80,92,null,560,560,null,null,null,null,480,480,null,null,null,null,null,null,null,null,null,null,null,null,null,null,null,null,1295,null,null,null,null,454,438]
["Marthe Pauline  Skinnes","Ivrig IL","Flying Team Vikersund","K NC C",1994,"Buskerud Skikrets",5688,1197,4491,null,null,null,567,553,null,null,null,null,454,462,null,null,null,null,null,null,null,null,null,null,null,null,null,null,null,null,1281,null,null,null,290,438,446]
["Karoline Andrea Røstad","Skogn IL",null,"K NC A",1995,"Nord-Tr.lag Skikrets",4381,609,3772,null,null,null,null,null,null,null,null,null,470,470,null,null,null,null,null,null,200,null,180,180,180,null,50,null,null,null,1288,null,null,null,300,null,454]
["Jenny Synnøve Hagemoen","Gausdal SL","NTG","K NC Elite",1993,"Oppland skikrets",4030,0,4030,null,null,null,658,658,null,null,null,null,490,490,null,null,null,null,null,null,null,null,null,190,190,null,45,null,null,null,1309]
["Tonje Bakke","Elverum Hopp","Hedmarkhopp","K RC A",null,"Hedmark Skikrets",3760,1183,2577,null,null,null,535,505,null,null,null,null,462,454,null,null,null,null,null,null,null,null,175,null,null,null,null,null,null,null,null,null,null,null,null,446]
["Sara Melø","Namdalseid IL",null,"K RC",1998,"Nord-Tr.lag Skikrets",1169,1169,0]
["Maria Beisvåg","Jardar IL","Kollenhopp","K RC A"," ","Akershus",650,0,650,null,null,null,null,null,null,null,null,null,null,null,null,null,null,null,null,null,null,null,170,null,null,null,null,null,null,null,null,null,null,null,null,480]
["Silje Opseth","Holeværingen IL","Flying Team Vikersund","K NC",1999,"Buskerud Skikrets",430,0,430,null,null,null,null,null,null,null,null,null,null,null,null,null,null,null,null,null,null,null,null,null,null,null,null,null,null,null,null,null,null,null,null,430]
["Thea Øihaugen","Gausdal SL",null,"K NC",2001,"Oppland Skikrets",422,0,422,null,null,null,null,null,null,null,null,null,null,null,null,null,null,null,null,null,null,null,null,null,null,null,null,null,null,null,null,null,null,null,null,422]
["Hanna Midtsundstad","Vaaler IF","Hedmarkhopp","K NC",1999,"Hedmark Skikrets",414,0,414,null,null,null,null,null,null,null,null,null,null,null,null,null,null,null,null,null,null,null,null,null,null,null,null,null,null,null,null,null,null,null,null,414]
["Mari Leinan Lund","Tolga IL","Hedmarkhopp","K NC",1999,"Hedmark Skikrets",406,0,406,null,null,null,null,null,null,null,null,null,null,null,null,null,null,null,null,null,null,null,null,null,null,null,null,null,null,null,null,null,null,null,null,406]

{"sheet":"Herrer","index":1,"n_rows":196,"n_cols":82,"rows_kept":196,"cut":false,"hidden":false,"merged":[]}
["ETTERNAVN","FORNAVN","KLUBB","TEAM","KLASSE","F.år","SKIKRETS","TOTAL","Plast","SUM","WC Klingenthal 24.11","WC Kuusamo 29.11","NC Vikersund 30.11","NC Vikersund 01.12","WC Lillehammer 07.12","WC Lillehammer 08.12","FIS Cup Notodden 12.12","COC Rena 13.12","FIS Cup Notodden 13.12","WC Titisee-Neustadt 14.12","COC Rena 14.12","WC Titisee-Neustadt 15.12","COC  Lahti 20.12","COC Lahti 21.12","WC Engelberg 21.12","WC Engelberg 22.12","WC Oberstdorf 29.12","WC Garmisch-Partenkirchen 01.01","WC Innsbruck 04.01","NC Lysgårdsbakken 04.01","NC Lysgårdsbakken 05.01","WC Bischofshofen 06.01","NC Granåsen 11.01","NC Granåsen 12.01","WC Tauplitz 11.01","WC Tauplitz 12.01","COC Courchevel 11.01","COC Courchevel 12.01","WC Wisla 16.01","WC Zakopane 19.01","NC Steinkjerbakken 18-19.01","COC Sapporo 16-19.01","NM Lysgårdsbakken 21.01","WC Sapporo 25.01","WC Sapporo 26.01","NC C Lierberget 25.01","NC Sprova 1  26.01","NC Sprova 2  26.01","WC Willingen 01.02","WC Willingen 02.02","VM Jr Val di Flemme 31.01","COC Iron Mountain 07.02","COC Iron Mountain 08.02","OL Sochi 09.02","NC Lønnberget 08.02 ","NC Lønnberget 09.02 ","NJ Rovaniemi 01.02","FIS Westby 31.01/01.02","FIS Ishpeming 05.02","COC Brotterode 14.02","OL  Sochi 15.02","COC Brotterode 15.02","COC Brotterode 16.02","NC Granåsen 15.02","NM Junior Granåsen 16.02","COC Seefeld 20.02","COC Seefeld 21.02","WC Falun 26.02","NC Holmenkollen 01.03.01","NC Holmenkollen 01.03.02","COC Falun 01.03-02.03","WC Lahti 28.02-02.03","WC Kuopio 04.03","WC Granåsen 07.03","COC Zakopane 08.03","COC Zakopane 09.03","WC Holmenkollen 09.03","WC Harrachov 15.03","NM Junior Mo 15.03","WC Planica 21.03","WC Planica 23.03","NM Skarbakken 29.03"]
["Bardal ","Anders","Steinkjer skiklubb","Trønderhopp","M NC Elite",1982,"N-Tr.lag",{"$f":"SUM(I2+J2)","v":26300},4980,{"$f":"SUM(K2:CX2)","v":21320},null,null,null,null,910,970,null,null,null,790,null,910,null,null,940,890,970,730,710,null,null,870,null,null,null,null,null,null,810,1000,null,null,500,null,null,null,null,null,null,null,null,null,null,940,null,null,null,null,null,null,670,null,null,null,null,null,null,870,null,null,null,1580,940,1000,null,null,970,970,null,970,940,470]
["Fannemel","Anders","Hornindal IL","Lillehammerhopp","M NC Elite",1991,"Sogn og Fjordane ",{"$f":"SUM(I3+J3)","v":20188},3886,{"$f":"SUM(K3:CX3)","v":16302},511,null,null,null,null,650,null,null,null,497,null,427,null,null,790,850,null,910,462,null,null,850,null,null,595,890,null,null,532,518,null,null,490,null,null,null,null,null,null,null,null,null,null,690,null,null,null,null,null,null,890,null,null,null,null,null,null,870,null,null,null,1119,483,462,null,null,null,850,null,750,770,446]
["Velta ","Rune","Lommedalen IL","Kollenhopp","M NC Elite",1989,"Akershus",{"$f":"SUM(I4+J4)","v":19086},4899,{"$f":"SUM(K4:CX4)","v":14187},null,910,"                    ",null,810,448,null,null,null,518,null,483,null,null,497," ",null,550,497,null,null,462,null,null,532,730,null,null,850,565,null,null,480,null,null,null,null,null,null,null,null,null,null,565,null,null,null,null,null,null,546,null,null,null,null,null,null,462,null,null,null,1229,525,518,null,null,610,532,null,null,462,406]
["Johansson  ","Robert","Søre Ål IL","Lillehammerhopp","M NC Elite",1990,"Oppland",{"$f":"SUM(I5+J5)","v":17441},4221,{"$f":"SUM(K5:CX5)","v":13220},null,730,null,null,420,364,null,null,null,null,null,null,null,null,427,392,null,null,null,490,490,null,null,null,476,441,null,null,427,469,null,null,446,595,610,null,null,null,392,469,null,null,null,null,null,null,null,null,null,609,null,616,490,null,null,616,623,null,null,null,920,null,null,null,567,679,null,null,null,null,null,462]
["Hilde","Tom","Asker SK","Kollenhopp","M NC Elite",1987,"Akershus  ",{"$f":"SUM(I6+J6)","v":16075},6835,{"$f":"SUM(K6:CX6)","v":9240},483,null,null,null,670,null,null,null,null,null,null,null,null,null,610,504,580,null,null,null,null,434,null,null,null,null,null,null,null,483,null,null,438,null,null,null,null,null,null,null,null,null,null,null,null,null,null,null,null,null,null,null,null,null,null,665,null,null,null,null,1337,null,null,670,null,null,730,null,null,610,546,480]
["Stjernen","Andreas","Sprova","Trønderhopp","M NC Elite",1988,"N.Tr.lag",{"$f":"SUM(I7+J7)","v":15211},4049,{"$f":"SUM(K7:CX7)","v":11162},null,413,null,null,392,420,null,595,null,null,475,null,null,null,null,null,null,null,null,null,null,null,null,null,455,null,null,null,null,null,null,null,422,364,413,null,null,null,511,null,null,null,null,null,null,null,null,null,null,null,null,null,null,438,null,630,672,null,null,null,null,1114,448,610,null,null,650,null,null,790,850,500]
["Ingvaldsen ","Ole Marius","Steinkjer SK","Trønderhopp","M NC Elite",1985,"N.Tr.lag",{"$f":"SUM(I8+J8)","v":14310},2977,{"$f":"SUM(K8:CX8)","v":11333},730,null,null,null,580,565,null,null,null,462,null,455,null,null,810,518,490,null,null,null,null,385,null,null,462,496,null,null,null,null,null,null,462,406,455,null,null,null,610,630,null,null,null,null,null,null,null,null,null,null,null,null,null,500,null,686,null,null,null,null,null,392,null,406,null,null,441,null,null,null,null,392]
["Hauer ","Joachim","Bækkelaget SK","Kollenhopp","M NC Elite",1991,"Oslo",{"$f":"SUM(I9+J9)","v":14011},2879,{"$f":"SUM(K9:CX9)","v":11132},null,null,470,490,null,null,null,490,null,null,560,null,null,null,null,null,null,null,null,480,454,null,null,null,null,null,null,null,null,null,null,2390,null,378,462,null,null,null,378,null,null,535,580,null,null,null,null,null,null,320,null,460,260,null,null,null,null,null,438,480,null,null,null,null,665,420,null,null,null,null,null,422]
["Swensen ","Vegard  ","Asker SK","Lillehammerhopp","M NC Elite",1986,"Akershus",{"$f":"SUM(I10+J10)","v":13059},3662,{"$f":"SUM(K10:CX10)","v":9397},null,null,454,470,null,null,null,300,null,null,380,null,null,null,null,null,null,null,null,422,480,null,null,null,null,null,null,null,null,null,null,2130,null,469,476,null,null,null,null,378,null,null,null,null,398,500,null,null,null,360,null,490,400,null,null,null,null,null,422,470,null,null,null,null,null,null,null,null,null,null,null,398]
["Grimsrud ","Simen Key","Asker Skiklubb","Kollenhopp","M NC Elite",1992,"Akershus",{"$f":"SUM(I11+J11)","v":12968},2684,{"$f":"SUM(K11:CX11)","v":10284},null,null,398,454,null,null,null,null,null,null,588,null,null,null,null,null,null,null,null,392,500,null,null,null,null,null,651,609,null,null,null,2037,null,497,420,null,null,null,null,504,null,320,574,null,null,null,null,null,null,270,null,560,410,null,null,null,null,null,454,384,null,null,null,null,null,null,null,null,null,null,null,262]
["Sjøen ","Phillip","Bækkelaget SK","Kollenhopp","M NC Elite",1995,"Oslo  ",{"$f":"SUM(I12+J12)","v":11952},4274,{"$f":"SUM(K12:CX12)","v":7678},null,null,null,490,null,null,null,609,null,null,609,null,475,330,null,null,null,null,null,446,438,null,null,null,null,null,280,null,null,null,null,null,398,null,null,null,null,null,null,null,240,null,null,null,490,490,null,null,null,null,null,null,null,454,225,null,null,null,500,414,null,null,null,null,null,null,null,null,300,null,null,490]
["Tande ","Daniel Andrè","Kongsberg IF","Flying Team Vikersund","M NC Elite",1994,"Buskerud  ",{"$f":"SUM(I13+J13)","v":11625},3135,{"$f":"SUM(K13:CX13)","v":8490},null,null,446,500,null,null,null,320,null,null,505,null,null,null,null,null,null,null,null,500,462,null,null,null,497,690,null,null,650,378,null,null,454,null,null,null,null,null,null,null,392,null,null,null,null,null,null,null,null,null,null,null,null,null,null,null,null,null,480,500,null,null,null,null,602,380,null,null,280,null,null,454]
["Bjerkeengen ","Fredrik","Kolbukameratene","Lillehammerhopp","M NC Elite",1988,"Oppland",{"$f":"SUM(I14+J14)","v":11297},4277,{"$f":"SUM(K14:CX14)","v":7020},null,406,null,null,null,null,null,null,null,null,null,null,null,null,null,null,null,null,null,454,360,null,null,null,null,null,null,null,null,null,null,null,384,null,null,null,470,490,null,null,null,581,679,null,null,null,null,null,null,567,null,623,609,null,null,270,null,null,null,null,1127]
["Forfang ","Johann Andrè","Tromsø Skiklub","Trønderhopp","M NC Elite",1995,"Troms",{"$f":"SUM(I15+J15)","v":10705},2819,{"$f":"SUM(K15:CX15)","v":7886},null,null,480,438,null,null,null,658,null,null,658,null,430,400,null,null,null,null,null,372,354,null,490,480,null,null,null,null,null,null,null,null,372,null,null,null,null,null,null,null,null,null,null,null,null,null,null,null,null,null,null,null,null,366,280,null,null,null,490,454,null,null,null,null,430,460,null,null,null,null,null,274]
["Berggaard","Mats Søhagen","Ringkollen Skiklubb","Flying Team Vikersund","M NC Elite",1995,"Buskerud",{"$f":"SUM(I16+J16)","v":10504},3354,{"$f":"SUM(K16:CX16)","v":7150},null,null,500,462,null,null,null,440,null,null,null,null,null,null,null,null,null,null,null,430,446,null,null,null,null,null,581,505,null,null,null,null,360,null,null,null,null,null,null,null,372,null,null,null,500,462,null,null,null,null,null,null,null,470,290,310,null,null,414,398,null,null,null,null,null,null,null,null,210]
["Rønsen  ","Atle Pedersen","Eidsvold IF","Lillehammerhopp","M NC Elite",1988,"Akershus",{"$f":"SUM(I17+J17)","v":10483},2378,{"$f":"SUM(K17:CX17)","v":8105},null,null,422,454,null,null,null,581,null,null,574,null,null,null,null,null,null,null,null,414,470,null,null,null,null,null,null,null,null,null,null,null,470,null,null,null,null,null,413,406,null,null,null,null,null,null,null,null,null,630,null,672,672,null,null,595,350,null,null,null,690,null,null,null,null,null,null,null,null,null,null,292]
["Brandt ","Johan Martin","Steinkjer SK","Trønderhopp","M NC Elite",1987,"N.Tr.lag",{"$f":"SUM(I18+J18)","v":10138},3358,{"$f":"SUM(K18:CX18)","v":6780},null,null,406,392,null,null,null,450,null,null,400,null,null,null,null,null,null,null,null,438,378,null,414,430,null,null,null,null,null,null,null,null,392,null,null,null,490,462,null,null,null,270,380,null,null,null,null,null,null,null,null,null,null,378,null,null,null,null,378,406,null,null,null,null,null,null,null,null,null,null,null,316]
["Fuhre ","Jan","Vikersund IF","Trønderhopp","M NC Elite",1991,"Buskerud",{"$f":"SUM(I19+J19)","v":10049},3058,{"$f":"SUM(K19:CX19)","v":6991},null,null,438,406,null,null,null,505,null,null,360,null,null,null,null,null,null,null,null,378,414,null,422,438,null,null,null,null,null,null,null,null,342,null,null,null,454,438,null,null,null,null,null,null,446,446,null,null,null,null,null,null,null,406,null,null,null,null,372,360,null,null,null,null,null,null,null,null,null,null,null,366]
["Bergquist ","Hans Petter","Aurskog/Finstadbru","Kollenhopp","M NC Elite",1994,"Akershus",{"$f":"SUM(I20+J20)","v":9298},1881,{"$f":"SUM(K20:CX20)","v":7417},null,null,414,null,null,null,300,null,290,null,null,null,574,440,null,null,null,null,null,366,366,null,462,500,null,null,null,null,null,null,null,null,378,null,null,null,null,null,null,null,354,null,null,null,462,454,null,null,null,null,null,null,null,414,250,null,null,null,406,422,null,null,null,null,null,null,null,null,235,null,null,330]
["Halvorsen ","Espen Enger","Eidsvold Værks Sk","Lillehammerhopp","M NC Elite",1990,"Akershus",{"$f":"SUM(I21+J21)","v":8630},3144,{"$f":"SUM(K21:CX21)","v":5486},null,null,360,366,null,null,null,null,null,null,null,null,null,null,null,null,null,null,null,384,396,null,454,490,null,null,null,null,null,null,null,null,316,null,null,null,446,430,null,null,null,null,null,null,480,480,null,null,null,null,null,null,null,446,null,null,null,null,null,null,null,null,null,null,null,null,null,null,null,null,null,438]
["Skinnes ","Stian Andrè","Gjerpenkollen hoppklubb","Flying Team Vikersund","M NC Elite",1991,"Buskerud",{"$f":"SUM(I22+J22)","v":8565},2661,{"$f":"SUM(K22:CX22)","v":5904},null,null,462,430,null,null,null,null,null,null,290,null,null,null,null,null,null,null,null,406,372,null,430,398,null,null,null,null,null,null,null,null,246,null,null,null,438,480,null,null,null,null,null,null,470,470,null,null,null,null,null,null,null,null,null,null,null,null,366,378,null,null,null,null,null,null,null,null,null,null,null,268]
["Hammer ","Tord Markussen","Tromsø Skiklub","Trønderhopp","M NC Elite",1988,"Troms  ",{"$f":"SUM(I23+J23)","v":8442},1854,{"$f":"SUM(K23:CX23)","v":6588},null,null,378,372,null,null,null,null,null,null,null,null,null,null,null,null,null,null,null,398,348,null,240,300,null,null,null,null,null,null,null,null,null,null,null,null,500,500,null,null,null,420,535,null,null,null,null,null,null,null,null,340,240,null,null,null,null,null,392,366,null,875,null,null,null,null,null,null,null,null,null,384]
["Søberg ","Sigurd Nymoen","Furnes Skil.for","Lillehammerhopp","M NC Elite",1994,"Hedmark",{"$f":"SUM(I24+J24)","v":8005},1528,{"$f":"SUM(K24:CX24)","v":6477},null,null,490,414,null,null,null,644,null,null,602,null,616,623,null,null,null,null,null,360,430,null,null,null,null,null,null,null,null,null,null,null,204,null,null,null,null,null,null,null,null,null,420,null,null,null,null,null,null,null,null,null,null,422,195,null,null,null,430,372,null,null,null,null,null,null,null,null,255]
["Romøren ","Bjørn Einar","Hosle IL","Kollenhopp","M NC Elite",1981,"Akershus",{"$f":"SUM(I25+J25)","v":7747},932,{"$f":"SUM(K25:CX25)","v":6815},null,null,372,360,null,null,null,null,null,null,null,null,null,null,null,null,null,null,null,336,406,null,438,null,null,null,null,null,null,null,null,null,354,null,null,null,null,null,null,null,null,null,null,null,null,null,null,null,null,null,null,null,null,490,null,null,null,null,470,490,null,null,null,null,658,700,null,630,null,441,670]
["Nedrejord ","Ole Mathis","Nordlys IL","NTG","M NC Elite",1996,"Finnmark",{"$f":"SUM(I26+J26)","v":7550},1237,{"$f":"SUM(K26:CX26)","v":6313},null,null,null,265,null,null,290,null,300,null,null,null,null,null,null,null,null,null,null,470,422,null,480,446,null,null,null,null,null,null,null,null,406,null,null,null,null,null,null,null,null,null,null,null,454,392,null,null,null,null,null,null,null,480,270,null,null,null,null,null,1066,null,null,null,null,null,null,null,230,null,null,342]
["Pedersen ","Robin","Stålkameratene IL","Trønderhopp","M NC Elite",1996,"Nordland",{"$f":"SUM(I27+J27)","v":7510},879,{"$f":"SUM(K27:CX27)","v":6631},null,null,280,280,null,null,215,null,230,null,null,null,null,null,null,null,null,null,null,300,240,null,500,462,null,null,null,null,null,null,null,null,304,null,null,null,430,470,null,null,null,null,null,null,438,414,null,null,null,null,null,null,null,430,245,null,null,null,446,392,null,null,null,null,null,null,null,null,245,null,null,310]
["Granerud","Halvor Egner","Asker Skiklubb","Kollenhopp","M NC A",1996,"Akershus",{"$f":"SUM(I28+J28)","v":7303},1818,{"$f":"SUM(K28:CX28)","v":5485},null,null,300,230,null,null,145,null,220,null,null,null,null,null,null,null,null,null,null,265,255,null,392,406,null,null,null,null,null,null,null,null,198,null,null,null,null,null,null,null,null,null,null,null,200,270,null,null,null,null,null,null,null,300,300,400,null,null,462,438,null,null,null,null,null,null,null,null,290,null,null,414]
["Søgård ","Jonas Gropen","Løten/Nordbygda","NTG","M NC Elite",1996,"Hedmark",{"$f":"SUM(I29+J29)","v":7276},1440,{"$f":"SUM(K29:CX29)","v":5836},null,null,265,300,null,null,225,null,270,null,null,null,null,null,null,null,null,null,null,462,392,null,470,422,null,null,null,null,null,null,null,null,336,null,null,null,414,422,null,null,null,null,null,null,422,430,null,null,null,null,null,null,null,398,260,null,null,null,null,null,null,null,null,null,null,null,null,null,null,null,null,348]
["Jacobsen ","Anders","Ringkollen Skiklubb","Flying Team Vikersund","M NC Elite",null,"Buskerud",{"$f":"SUM(I30+J30)","v":7247},0,{"$f":"SUM(K30:CX30)","v":7247},null,null,null,null,null,504,null,null,null,476,null,650,null,null,null,null,504,532,670,null,null,770,null,null,null,null,null,null,490,511,null,null,430,null,null,null,null,null,null,null,null,null,null,525,null,null,null,null,null,null,455,null,null,null,null,null,null,730]
["Røe ","Espen  ","Tolga IL","Trønderhopp","M NC Elite",1993,"Hedmark  ",{"$f":"SUM(I31+J31)","v":6618},1982,{"$f":"SUM(K31:CX31)","v":4636},null,null,430,422,null,null,null,null,null,null,null,null,null,null,null,null,null,null,null,354,384,null,null,392,null,null,null,null,null,null,null,null,216,null,null,null,462,414,null,null,null,null,null,null,414,398,null,null,null,null,null,null,null,372,null,null,null,null,null,null,null,null,null,null,null,null,null,null,null,null,null,378]
["Strand ","Knut Jokerud","Vikersund IF","Flying Team Vikersund","M NC A",1996,"Buskerud",{"$f":"SUM(I32+J32)","v":6248},1677,{"$f":"SUM(K32:CX32)","v":4571},null,null,366,378,null,null,265,null,265,null,null,null,null,null,null,null,null,null,null,348,336,null,225,235,null,null,null,null,null,null,null,null,280,null,null,null,245,270,null,null,null,null,null,null,null,null,null,null,null,null,null,null,null,210,185,null,null,null,265,255,null,null,null,null,null,null,null,null,145,null,null,298]
["Sorsell ","Kim Rene Elverum","Ullensaker Skikl","Kollenhopp","M NC A",1988,"Akershus",{"$f":"SUM(I33+J33)","v":5944},1778,{"$f":"SUM(K33:CX33)","v":4166},null,null,null,null,null,null,null,320,null,null,420,null,null,null,null,null,null,null,null,null,null,null,446,454,null,null,null,null,null,null,null,null,268,null,null,null,null,null,null,null,null,null,null,null,null,null,null,null,null,380,null,350,390,null,null,null,null,null,384,430,null,null,null,null,null,null,null,null,null,null,null,324]
["Hulløen ","Bendik Netland","Oddersjaa SSK","NTG","M NC A",1996,"Agder/Rogaland",{"$f":"SUM(I34+J34)","v":5831},1589,{"$f":"SUM(K34:CX34)","v":4242},null,null,195,195,null,null,175,null,180,null,null,null,null,null,null,null,null,null,null,125,280,null,290,230,null,null,null,null,null,null,null,null,222,null,null,null,300,250,null,null,null,null,null,null,265,235,null,null,null,null,null,null,null,225,210,null,null,null,225,230,null,null,null,null,null,null,null,null,170,null,null,240]
["Engen","Klaus Ovlien","Aurskog/Finstadbru","Kollenhopp","M NC Elite",1992,"Akershus",{"$f":"SUM(I35+J35)","v":5831},1665,{"$f":"SUM(K35:CX35)","v":4166},null,null,260,270,null,null,null,null,null,null,null,null,null,null,null,null,null,null,null,280,120,null,null,null,null,null,null,null,null,null,null,null,348,null,null,null,480,454,null,null,null,null,null,null,430,438,null,null,null,null,null,null,null,384,null,null,null,null,360,null,null,null,null,null,null,null,null,null,null,null,null,342]
["Aune ","Joakim","Byåsen IL","Trønderhopp","M NC A",1993,"S.Tr.lag",{"$f":"SUM(I36+J36)","v":5692},2100,{"$f":"SUM(K36:CX36)","v":3592},null,null,240,290,null,null,null,null,null,null,null,null,null,null,null,null,null,null,null,null,290,null,406,414,null,null,null,null,null,null,null,null,240,null,null,null,null,null,null,null,null,null,null,null,280,300,null,null,null,null,null,null,null,250,null,null,null,null,240,270,null,null,null,null,null,null,null,null,null,null,null,372]
["Stenseth ","Mathis Rebne","Furnes Skil.for","NTG","M NC A",1995,"Hedmark",{"$f":"SUM(I37+J37)","v":5605},1509,{"$f":"SUM(K37:CX37)","v":4096},null,null,null,null,null,null,235,null,255,null,null,null,null,null,null,null,null,null,null,270,245,null,null,null,null,null,null,null,null,null,null,null,310,null,null,null,null,null,null,null,null,null,null,null,300,422,null,null,null,null,null,null,null,462,265,null,null,null,398,446,null,null,null,null,null,null,null,null,260,null,null,228]
["Bjøreng ","Joacim Ødegård","Røykenhopp","Flying Team Vikersund","M NC A",1995,"Buskerud",{"$f":"SUM(I38+J38)","v":5428},1155,{"$f":"SUM(K38:CX38)","v":4273},null,null,170,245,null,null,260,null,245,null,null,null,null,null,null,null,null,null,null,240,250,null,230,250,null,null,null,null,null,null,null,null,234,null,null,null,290,280,null,null,null,null,null,null,255,280,null,null,null,null,null,null,null,null,null,null,null,null,260,280,null,null,null,null,null,null,null,null,200,null,null,304]
["Madsen ","Jørgen","Skimt IL","Kollenhopp","M NC A",1994,"Akershus",{"$f":"SUM(I39+J39)","v":5330},1358,{"$f":"SUM(K39:CX39)","v":3972},null,null,205,260,null,null,155,null,225,null,null,null,null,null,null,null,null,null,null,245,300,null,205,255,null,null,null,null,null,null,null,null,262,null,null,null,null,null,null,null,null,null,null,null,290,290,null,null,null,null,null,null,null,280,215,null,null,null,290,300,null,null,null,null,null,null,null,null,195]
["Berger ","Lars Brodshaug","Eidsvold Værks Sk","NTG","M NC A",1995,"Akershus",{"$f":"SUM(I40+J40)","v":5187},1073,{"$f":"SUM(K40:CX40)","v":4114},null,null,200,240,null,null,245,null,250,null,null,null,null,null,null,null,null,null,null,260,235,null,270,270,null,null,null,null,null,null,null,null,324,null,null,null,260,300,null,null,null,null,null,null,260,255,null,null,null,null,null,null,null,265,240,null,null,null,null,null,null,null,null,null,null,null,null,null,240]
["Sumstad ","Are","Sør-Fron IL","NTG","M NC A",1996,"Oppland",{"$f":"SUM(I41+J41)","v":4868},625,{"$f":"SUM(K41:CX41)","v":4243},null,null,185,225,null,null,235,null,240,null,null,null,null,null,null,null,null,null,null,220,190,null,255,210,null,null,null,null,null,null,null,null,298,null,null,null,280,290,null,null,null,null,null,null,245,245,null,null,null,null,null,null,null,260,220,null,null,null,null,null,null,null,null,null,null,null,null,null,215,null,null,430]
["Sklett  ","Vegard Haukø","Grong IL","Trønderhopp","M NC Elite",1986,"N.Tr.lag",{"$f":"SUM(I42+J42)","v":4852},392,{"$f":"SUM(K42:CX42)","v":4460},null,null,384,406,null,null,null,null,null,null,null,null,null,null,null,null,null,null,null,342,342,null,398,470,null,null,null,null,null,null,null,null,192,null,null,null,422,446,null,null,null,null,null,null,406,406,null,null,null,null,null,null,null,null,null,null,null,null,null,null,null,null,null,null,null,null,null,null,null,null,null,246]
["Henriksen","Andreas Tyholt","Stjørdals-Blink IL","Trønderhopp","M NC A",1994,"N.Tr.lag",{"$f":"SUM(I43+J43)","v":4691},439,{"$f":"SUM(K43:CX43)","v":4252},null,null,null,null,null,null,null,null,null,null,null,null,null,null,null,null,null,null,null,290,270,null,300,290,null,null,null,null,null,null,null,null,330,null,null,null,270,240,null,null,null,null,null,null,280,250,null,null,null,null,null,null,null,392,190,null,null,null,280,290,null,null,null,null,null,null,null,null,220,null,null,360]
["Hellerud ","Andreas Myhre","Magnor UL","Lillehammerhopp","M NC A",1992,"Hedmark",{"$f":"SUM(I44+J44)","v":4626},1546,{"$f":"SUM(K44:CX44)","v":3080},null,null,255,205,null,null,null,null,null,null,null,null,null,null,null,null,null,null,null,225,205,null,205,240,null,null,null,null,null,null,null,null,null,null,null,null,210,255,null,null,null,null,null,null,240,270,null,null,null,null,null,null,null,235,null,null,null,null,270,265]
["Marø ","Idar","Alta IF","NTG","M NC A",1995,"Finnmark",{"$f":"SUM(I45+J45)","v":4612},917,{"$f":"SUM(K45:CX45)","v":3695},null,null,255,160,null,null,250,null,160,null,null,null,null,null,null,null,null,null,null,205,225,null,195,195,null,null,null,null,null,null,null,null,286,null,null,40,null,null,null,null,null,null,null,null,235,200,null,null,null,null,null,null,null,220,210,null,null,null,255,250,null,null,null,null,null,null,null,null,120,null,null,234]
["Vellupillai ","Rishi","Liabygda IL","NTG","M NC A",1997,"N.Tr.lag",{"$f":"SUM(I46+J46)","v":4514},500,{"$f":"SUM(K46:CX46)","v":4014},null,null,235,190,null,null,165,null,170,null,null,null,null,null,null,null,null,null,null,215,215,null,255,245,null,null,null,null,null,null,null,null,292,null,null,null,235,265,null,null,null,null,null,null,250,270,null,null,null,null,null,null,null,245,235,null,null,null,null,null,null,null,null,null,null,null,null,null,280,null,null,252]
["Øvregård ","Jonas Schøien","Vålerenga Ski","Kollenhopp","M NC A",1994,"Oslo",{"$f":"SUM(I47+J47)","v":4509},1700,{"$f":"SUM(K47:CX47)","v":2809},null,null,230,210,null,null,185,null,235,null,null,null,null,null,null,null,null,null,null,190,220,null," ",null,null,null,null,null,null,null,null,null,210,null,null,null,null,null,null,null,null,null,null,null,null,null,null,null,null,null,null,null,null,200,null,null,null,null,250,260,null,null,null,null,null,null,null,null,265,null,null,354]
["Henningsen ","Alexander","Tromsø Skiklub","Lillehammerhopp","M NC A",1994,"Troms",{"$f":"SUM(I48+J48)","v":4480},1157,{"$f":"SUM(K48:CX48)","v":3323},null,null,270,255,null,null,190,null,210,null,null,null,null,null,null,null,null,null,null,200,230,null,185,155,null,null,null,null,null,null,null,null,null,null,null,null,195,230,null,null,null,null,null,null,195,215,null,null,null,null,null,null,null,230,180,null,null,null,null,null,null,null,null,null,null,null,null,null,195,null,null,188]
["Bråtane","Sondre Vestøl","Sogne SK","Trønderhopp","M NC A",1996,"Agder/Rogaland",{"$f":"SUM(I49+J49)","v":4468},1272,{"$f":"SUM(K49:CX49)","v":3196},null,null,245,255,null,null,null,null,null,null,null,null,null,null,null,null,null,null,null,250,260,null,260,280,null,null,null,null,null,null,null,null,366,null,null,null,250,260,null,null,null,null,null,null,null,null,null,null,null,null,null,null,null,290,255,null,null,null,null,null,null,null,null,null,null,null,null,null,225]
["Inngjerdingen ","Christian","Øvrevoll/Hosle IL","Kollenhopp","M NC A",1996,"Oslo",{"$f":"SUM(I50+J50)","v":4439},1122,{"$f":"SUM(K50:CX50)","v":3317},null,null,215,165,null,null,180,null,145,null,null,null,null,null,null,null,null,null,null,170,165,null,210,220,null,null,null,null,null,null,null,null,182,null,null,null,240,220,null,null,null,null,null,null,160,195,null,null,null,null,null,null,null,140,110,null,null,null,205,235,null,null,null,null,null,null,null,null,160]
["Pedersen ","Peder Nævestad","Byaasen SK","Trønderhopp","M NC A",1995,"S.Tr.lag",{"$f":"SUM(I51+J51)","v":3955},871,{"$f":"SUM(K51:CX51)","v":3084},null,null,200,190,null,null,null,null,null,null,null,null,null,null,null,null,null,null,null,200,190,null,245,265,null,null,null,null,null,null,null,null,414,null,null,null,255,225,null,null,null,null,null,null,null,null,null,null,null,null,null,null,null,255,200,null,null,null,220,225]
["Haukedal ","Rickard","Bækkelaget SK","Kollenhopp","M NC A",1996,"Oslo",{"$f":"SUM(I52+J52)","v":3855},1280,{"$f":"SUM(K52:CX52)","v":2575},null,null,135,null,null,null,null,null,null,null,null,null,null,null,null,null,null,null,null,180,195,null,185,185,null,null,null,null,null,null,null,null,null,null,null,null,200,205,null,null,null,null,null,null,185,185,null,null,null,null,null,null,null,205,140,null,null,null,235,245,null,null,null,null,null,null,null,null,95]
["Loe ","Jostein","Raufoss IL","Lillehammerhopp","M NC A",1994,"Oppland",{"$f":"SUM(I53+J53)","v":3697},977,{"$f":"SUM(K53:CX53)","v":2720},null,null,195,185,null,null,null,null,null,null,175,null,null,null,null,null,null,null,null,160,175,null,190,190,null,null,null,null,null,null,null,null,null,null,null,null,null,null,null,null,null,null,null,null," ",170,null,475,200,null,null,null,null,null,155,null,null,null,230,220]
["Stensgård ","Kristian","Søre Ål IL","NTG","M NC A",1996,"Oppland",{"$f":"SUM(I54+J54)","v":3672},355,{"$f":"SUM(K54:CX54)","v":3317},null,null,null,240,null,null,170,null,null,null,null,null,null,null,null,null,null,null,null,255,265,null,280,260,null,null,null,null,null,null,null,null,274,null,null,null,265,250,null,null,null,null,null,null,210,null,null,null,null,null,null,null,null,270,165,null,null,null,null,null,null,null,null,null,null,null,null,null,185,null,null,228]
["Sørli ","Kristoffer","Tolga IL","Trønderhopp","M NC A",1993,"Hedmark",{"$f":"SUM(I55+J55)","v":3466},793,{"$f":"SUM(K55:CX55)","v":2673},null,null,220,200,null,null,null,null,null,null,null,null,null,null,null,null,null,null,null,195,160,null,265,200,null,null,null,null,null,null,null,null,178,null,null,null,220,215,null,null,null,null,null,null,170,235,null,null,null,null,null,null,null,null,null,null,null,null,215,200]
["Randen ","Jacob Tjåland","Folldal IL","NTG","M NC A",1996,"Hedmark",{"$f":"SUM(I56+J56)","v":3313},304,{"$f":"SUM(K56:CX56)","v":3009},null,null,175,180,null,null,null,null,null,null,null,null,null,null,null,null,null,null,null,175,155,null,215,215,null,null,null,null,null,null,null,null,228,null,null,null,215,210,null,null,null,null,null,null,205,180,null,null,null,null,null,null,null,215,175,null,null,null,null,null,null,null,null,null,null,null,null,null,180,null,null,286]
["Livelten","Adrian Sørensen","IL Hjelset-Fram","Lillehammerhopp","M NC A",1994,"Møre og Romsdal",{"$f":"SUM(I57+J57)","v":3228},717,{"$f":"SUM(K57:CX57)","v":2511},null,null,155,155,null,null,null,null,null,null,null,null,null,null,null,null,null,null,null,165,185,null,165,170,null,null,null,null,null,null,null,null,null,null,null,null,230,235,null,null,null,null,null,null,195,225,null,null,null,null,null,null,null,155,95,null,null,null,null,null,null,null,null,null,null,null,null,null,165,null,null,216]
["Riiber ","Jarl Magnus","Heming IL","Kollenhopp","M NC A",1997,"Oslo",{"$f":"SUM(I58+J58)","v":3179},1641,{"$f":"SUM(K58:CX58)","v":1538},null,null,392,384,null,null,null,null,null,null,null,null,null,null,null,null,null,null,null,null,null,null,null,null,null,null,null,null,null,null,null,null,null,null,null,null,null,null,null,null,null,null,null,null,null,null,null,null,null,null,null,null,null,null,null,null,null,null,300,462]
["Brenna","Christian","Hakadal IL","Kollenhopp","M NC A",1995,"Akershus",{"$f":"SUM(I59+J59)","v":3152},988,{"$f":"SUM(K59:CX59)","v":2164},null,null,null,null,null,null,null,null,null,null,170,null,null,null,null,null,null,null,null,155,135,null,160,84,null,null,null,null,null,null,null,null,null,null,null,null,190,200,null,null,null,null,null,null,185,190,null,null,null,null,null,null,null,null,80,null,null,null,195,210,null,null,null,null,null,null,null,null,210]
["Lian","Kristian","Ivrig IL","Lillehammerhopp","M NC A",1994,"Telemark/Vestfold",{"$f":"SUM(I60+J60)","v":3123},1133,{"$f":"SUM(K60:CX60)","v":1990},null,null,190,200,null,null,null,null,null,null,null,null,null,null,null,null,null,null,null,null,160,null,160,165,null,null,null,null,null,null,null,null,null,null,null,null,205,195,null,null,null,null,null,null,215,205,null,null,null,null,null,null,null,150,145]
["Hoff ","Andreas","Raufoss IL","Lillehammerhopp","M NC A",1993,"Oppland",{"$f":"SUM(I61+J61)","v":2826},901,{"$f":"SUM(K61:CX61)","v":1925},null,null,180,175,null,null,null,null,null,null,185,null,null,null,null,null,null,null,null,175,130,null,170,150,null,null,null,null,null,null,null,null,null,null,null,null,225,200,null,null,null,null,null,null,175,160]
["Øvregård ","Jens Schøien","Vålerenga Ski","Kollenhopp","M NC B",1996,"Oslo",{"$f":"SUM(I62+J62)","v":2785},685,{"$f":"SUM(K62:CX62)","v":2100},null,null,140,130,null,null,null,null,null,null,null,null,null,null,null,null,null,null,null,150,180,null,155,160,null,null,null,null,null,null,null,null,null,null,null,null,null,null,null,null,null,null,null,null,150,210,null,null,null,null,null,null,null,145,115,null,null,null,245,240,null,null,null,null,null,null,null,null,80]
["Næsvold ","Kjell Andreas","Røykenhopp","Flying Team Vikersund","M NC A",1996,"Buskerud",{"$f":"SUM(I63+J63)","v":2682},650,{"$f":"SUM(K63:CX63)","v":2032},null,null,160,135,null,null,null,null,null,null,null,null,null,null,null,null,null,null,null,162,165,null,180,150,null,null,null,null,null,null,null,null,null,null,null,null,150,190,null,null,null,null,null,null,155,165,null,null,null,null,null,null,null,null,null,null,null,null,165,170,null,null,null,null,null,null,null,null,85]
["Hafslund ","Oskar Alexander","Nordbygda/Løtenski","NTG","M NC A",1997,"Hedmark",{"$f":"SUM(I64+J64)","v":2677},415,{"$f":"SUM(K64:CX64)","v":2262},null,null,170,165,null,null,null,null,null,null,190,null,null,null,null,null,null,null,null,180,180,null,190,175,null,null,null,null,null,null,null,null,null,null,null,50,null,null,null,null,null,null,null,null,225,220,null,null,null,null,null,null,null,null,150,null,null,null,null,null,null,null,null,null,null,null,null,null,175,null,null,192]
["Langård ","Jonas","Hurdal IL","Lillehammerhopp","M NC B",1993,"Akershus",{"$f":"SUM(I65+J65)","v":2636},724,{"$f":"SUM(K65:CX65)","v":1912},null,null,null,150,null,null,null,null,null,null,null,null,null,null,null,null,null,null,null,135,145,null,145,180,null,null,null,null,null,null,null,null,null,null,null,null,null,null,null,null,null,null,null,null,230,240,null,null,null,null,null,null,null,195,null,null,null,null,160,150,null,null,null,null,null,null,null,null,null,null,null,182]
["Westerheim ","Oskar P","Bækkelaget SK","Kollenhopp","M NC B",1996,"Oslo",{"$f":"SUM(I66+J66)","v":2628},839,{"$f":"SUM(K66:CX66)","v":1789},null,null,130,125,null,null,null,null,null,null,null,null,null,null,null,null,null,null,null,130,125,null,72,109,null,null,null,null,null,null,null,null,null,null,null,null,null,null,null,null,null,null,null,null,103,155,null,null,null,null,null,null,null,175,135,null,null,null,190,200,null,null,null,null,null,null,null,null,140]
["Sandell ","Jonas","Tromsø Skiklub","Trønderhopp","M NC A",1995,"Troms",{"$f":"SUM(I67+J67)","v":2559},1379,{"$f":"SUM(K67:CX67)","v":1180},null,null,290,null,null,null,null,null,null,null,null,null,null,null,null,null,null,null,null,230,200,null,235,225]
["Lindvik","Marius  ","Rælingen skiklubb","Kollenhopp","M NC B",1998,"Akershus",{"$f":"SUM(I68+J68)","v":2470},455,{"$f":"SUM(K68:CX68)","v":2015},null,null,135,175,null,null,null,null,null,null,null,null,null,null,null,null,null,null,null,190,200,null,165,200,null,null,null,null,null,null,null,null,null,null,null,null,null,null,null,null,null,null,null,null,180,150,150,null,null,null,null,null,null,240,230]
["Korody","Christian","Jardar IL","Kollenhopp","M NC A",1993,"Akershus",{"$f":"SUM(I69+J69)","v":2437},727,{"$f":"SUM(K69:CX69)","v":1710},null,null,155,170,null,null,null,null,null,null,null,null,null,null,null,null,null,null,null,160,170,null,150,175,null,null,null,null,null,null,null,null,null,null,null,null,null,null,null,null,null,null,null,null,145,null,null,null,null,null,null,null,null,160,null,null,null,null,210,215]
["Hagemoen ","Leif Marius","Gausdal Skilag","NTG","M NC B",1995,"Oppland",{"$f":"SUM(I70+J70)","v":2433},700,{"$f":"SUM(K70:CX70)","v":1733},null,null,175,170,null,null,null,null,null,null,null,null,null,null,null,null,null,null,null,235,175,null,null,null,null,null,null,null,null,null,null,null,188,null,null,null,null,null,null,null,null,null,null,null,200,200,null,null,null,null,null,null,null,null,null,null,null,null,200,190]
["Jeremiassen ","Steffen","Skimt IL","Kollenhopp","M NC B",1997,"Akershus",{"$f":"SUM(I71+J71)","v":2430},1021,{"$f":"SUM(K71:CX71)","v":1409},null,null,145,145,null,null,null,null,null,null,null,null,null,null,null,null,null,null,null,140,140,null,130,96,null,null,null,null,null,null,null,null,null,null,null,null,null,null,null,null,null,null,null,null,64,80,null,null,null,null,null,null,null,109,40,null,null,null,125,130,null,null,null,null,null,null,null,null,65]
["Ihle","Magnus","Jardar IL","Kollenhopp","M NC B",1997,"Akershus",{"$f":"SUM(I72+J72)","v":2350},630,{"$f":"SUM(K72:CX72)","v":1720},null,null,165,135,null,null,null,null,null,null,null,null,null,null,null,null,null,null,null,145,150,null,null,null,null,null,null,null,null,null,null,null,null,null,null,null,null,null,null,null,null,null,null,null,145,165,null,null,null,null,null,null,null,180,160,null,null,null,150,165,null,null,null,null,null,null,null,null,160]
["Østlie","Ola Walle","Løten/Nordbygda","Hedmarkhopp","M NC B",1995,"Hedmark",{"$f":"SUM(I73+J73)","v":2243},468,{"$f":"SUM(K73:CX73)","v":1775},null,null,120,115,null,null,null,null,null,null,null,null,null,null,null,null,null,null,null,170,175,null,170,145,null,null,null,null,null,null,null,null,null,null,null,null,null,null,null,null,null,null,null,null,120,160,null,null,null,null,null,null,null,145,120,null,null,null,175,160]
["Myhren","Mats Bjerke","Søre Ål IL","NTG","M NC B",1997,"Oppland",{"$f":"SUM(I74+J74)","v":2186},327,{"$f":"SUM(K74:CX74)","v":1859},null,null,106,106,null,null,null,null,null,null,null,null,null,null,null,null,null,null,null,130,115,null,175,155,null,null,null,null,null,null,null,null,null,null,null,45,null,null,null,null,null,null,null,null,190,112,null,null,null,null,null,null,null,160,90,null,null,null,170,175,null,null,null,null,null,null,null,null,130]
["Bakke ","Edvart Myrvang","Hedalen IL","Flying Team Vikersund","M NC A",1996,"Buskerud",{"$f":"SUM(I75+J75)","v":2158},783,{"$f":"SUM(K75:CX75)","v":1375},null,null,160,140,null,null,150,null,135,null,null,null,null,null,null,null,null,null,null,210,155,null,220,205]
["Melnes ","Sindre Beite","Blaker IL","NTG","M NC B",1995,"Akershus",{"$f":"SUM(I76+J76)","v":2133},366,{"$f":"SUM(K76:CX76)","v":1767},null,null,145,140,null,null,null,null,null,null,null,null,null,null,null,null,null,null,null,155,140,null,145,125,null,null,null,null,null,null,null,null,null,null,null,null,null,null,null,null,null,null,null,null,145,112,null,null,null,null,null,null,null,150,70,null,null,null,140,180,null,null,null,null,null,null,null,null,120]
["Ringen ","Sondre","Bækkelaget SK","Kollenhopp","M NC B",1996,"Oslo",{"$f":"SUM(I77+J77)","v":2099},938,{"$f":"SUM(K77:CX77)","v":1161},null,null,180,155,null,null,null,null,null,null,null,null,null,null,null,null,null,null,null,125,130,null,96,160,null,null,null,null,null,null,null,null,null,null,null,null,155,160]
["Haug","Tor Kristian","Byåsen IL","Trønderhopp","M NC A",1991,"S.Tr.lag",{"$f":"SUM(I78+J78)","v":2015},140,{"$f":"SUM(K78:CX78)","v":1875},null,null,null,null,null,null,null,null,null,null,180,null,null,null,null,null,null,null,null,150,150,null,160,160,null,null,null,null,null,null,null,null,null,null,null,null,165,165,null,null,null,null,null,null,165,175,null,null,null,null,null,null,null,null,null,null,null,null,200,205]
["Myhre","Sondre","Raufoss IL","Lillehammerhopp","M NC A",1993,"Oppland",{"$f":"SUM(I79+J79)","v":1920},0,{"$f":"SUM(K79:CX79)","v":1920},null,null,210,220,null,null,null,null,null,null,null,null,null,null,null,null,null,null,null,185,210,null,175,180,null,null,null,null,null,null,null,null,null,null,null,null,null,null,null,null,null,null,null,null,null,null,null,505,235]
["Buskum","Andreas Granerud","Raufoss IL","NTG","M NC B",1996,"Oppland",{"$f":"SUM(I80+J80)","v":1916},410,{"$f":"SUM(K80:CX80)","v":1506},null,null,225,215,null,null,220,null,140,null,null,null,null,null,null,null,null,null,null,null,null,null,null,null,null,null,null,null,null,null,null,null,252,null,null,null,null,null,null,null,null,null,null,null,null,null,null,null,null,null,null,null,null,null,null,null,null,null,null,null,null,null,null,null,null,null,null,null,250,null,null,204]
["Fredheim ","Kenneth Henningsmo","Nansen IL","Trønderhopp","M NC B",1997,"Hedmark",{"$f":"SUM(I81+J81)","v":1832},373,{"$f":"SUM(K81:CX81)","v":1459},null,null,109,109,null,null,null,null,null,null,null,null,null,null,null,null,null,null,null,null,null,null,120,170,null,null,null,null,null,null,null,null,null,null,null,null,120,170,null,null,null,null,null,null,106,140,null,null,null,null,null,null,null,190,75,null,null,null,null,null,null,null,null,null,null,null,null,null,150]
["Flotten ","Erlend","Tormod Skilag","NTG","M NC B",1996,"Oppland",{"$f":"SUM(I82+J82)","v":1711},380,{"$f":"SUM(K82:CX82)","v":1331},null,null,125,150,null,null,null,null,null,null,null,null,null,null,null,null,null,null,null,106,null,null,null,null,null,null,null,null,null,null,null,null,null,null,null,32,null,null,null,null,null,null,null,null,96,72,null,null,null,null,null,null,null,115,65,null,null,null,135,155,null,null,null,null,null,null,null,null,null,null,null,280]
["Eriksen ","Espen Alexander","Tromsø Skiklub","Trønderhopp","M NC A",1994,"Troms",{"$f":"SUM(I83+J83)","v":1517},590,{"$f":"SUM(K83:CX83)","v":927},null,null,112,130,null,null,null,null,null,null,null,null,null,null,null,null,null,null,null,135,135,null,135,165,null,null,null,null,null,null,null,null,null,null,null,null,null,115]
["Danielsen ","Stian","Alta IF","Trønderhopp","M NC A",1996,"Finnmark",{"$f":"SUM(I84+J84)","v":1458},0,{"$f":"SUM(K84:CX84)","v":1458},null,null,150,180,null,null,null,null,null,null,null,null,null,null,null,null,null,null,null,null,null,null,null,null,null,null,null,null,null,null,null,null,null,null,null,null,200,175,null,null,null,null,null,null,220,null,null,null,null,null,null,null,null,165,170,null,null,null,null,null,null,null,null,null,null,null,null,null,null,null,null,198]
["Knapstad ","Anders","Ivrig IL","Flying Team Vikersund","M NC B",1996,"Telemark/Vestfold",{"$f":"SUM(I85+J85)","v":1445},452,{"$f":"SUM(K85:CX85)","v":993},null,null,165,125,null,null,null,null,null,null,null,null,null,null,null,null,null,null,null,145,125,null,100,115,null,null,null,null,null,null,null,null,null,null,null,null,112,106]
["Svorkdal ","Tormod","Orkdal IL","Trønderhopp","M NC B",1994,"S.Tr.lag",{"$f":"SUM(I86+J86)","v":1445},145,{"$f":"SUM(K86:CX86)","v":1300},null,null,null,null,null,null,null,null,null,null,null,null,null,null,null,null,null,null,null,null,null,null,null,null,null,null,null,null,null,null,null,null,null,null,null,null,180,180,null,null,null,null,null,null,160,145,null,null,null,null,null,null,null,170,105,null,null,null,145,140,null,null,null,null,null,null,null,null,75]
["Dahl ","Oliver","Byåsen IL","Trønderhopp","M NC B",1997,"S.Tr.lag",{"$f":"SUM(I87+J87)","v":1369},208,{"$f":"SUM(K87:CX87)","v":1161},null,null,null,null,null,null,null,null,null,null,null,null,null,null,null,null,null,null,null,null,null,null,null,null,null,null,null,null,null,null,null,null,null,null,null,null,125,135,null,null,null,null,null,null,115,135,null,null,null,null,null,null,null,200,130,null,null,null,null,null,null,null,null,null,null,null,null,null,105,null,null,216]
["Vedal","Jørgen","Rælingen skiklubb","NTG","M NC B",null,"Akershus  ",{"$f":"SUM(I88+J88)","v":1366},275,{"$f":"SUM(K88:CX88)","v":1091},null,null,null,null,null,null,null,null,null,null,null,null,null,null,null,null,null,null,null," ",120,null,120,106,null,null,null,null,null,null,null,null,null,null,null,35,null,null,null,null,null,null,null,null,null,170,null,null,null,null,null,null,null,135,125,null,null,null,155,null,null,null,null,null,null,null,null,null,125]
["Johansen ","Oskar Bærheim","Lensbygda Sp.klubb","Trønderhopp","M NC B",1996,"Oppland",{"$f":"SUM(I89+J89)","v":1335},347,{"$f":"SUM(K89:CX89)","v":988},null,null,null,null,null,null,null,null,null,null,null,null,null,null,null,null,null,null,null,null,null,null,76,130,null,null,null,null,null,null,null,null,null,null,null,null,145,145,null,null,null,null,null,null,112,115,null,null,null,null,null,null,null,165,100]
["Pettersen","Morten","Byåsen IL","Trønderhopp","M NC B",1995,"S.Tr.lag",{"$f":"SUM(I90+J90)","v":1294},170,{"$f":"SUM(K90:CX90)","v":1124},null,null,null,null,null,null,null,null,null,null,null,null,null,null,null,null,null,null,null,null,null,null,125,135,null,null,null,null,null,null,null,null,null,null,null,null,160,150,null,null,null,null,null,null,109,125,null,null,null,null,null,null,null,125,60,null,null,null,null,null,null,null,null,null,null,null,null,null,135]
["Lippestad","Carl Henning","Bækkelaget SK","Kollenhopp","M NC B",1998,"Oslo",{"$f":"SUM(I91+J91)","v":1268},293,{"$f":"SUM(K91:CX91)","v":975},null,null,150,160,null,null,null,null,null,null,null,null,null,null,null,null,null,null,null,140,145,null,103,112,null,null,null,null,null,null,null,null,null,null,null,null,null,null,null,null,null,null,null,null,165]
["Lunnan ","Håvard Svingen","Skatval Skilag","Trønderhopp","M NC B",1996,"N.Tr.lag",{"$f":"SUM(I92+J92)","v":1225},135,{"$f":"SUM(K92:CX92)","v":1090},null,null,null,null,null,null,null,null,null,null,null,null,null,null,null,null,null,null,null,null,null,null,115,120,null,null,null,null,null,null,null,null,null,null,null,null,170,155,null,null,null,null,null,null,96,84,null,null,null,null,null,null,null,155,85,null,null,null,null,null,null,null,null,null,null,null,null,null,110]
["Viken ","Jonas","Steinkjer Skiklubb","Trønderhopp","M NC B",1997,"N.Tr.lag",{"$f":"SUM(I93+J93)","v":1193},432,{"$f":"SUM(K93:CX93)","v":761},null,null,null,120,null,null,null,null,null,null,null,null,null,null,null,null,null,null,null,null,null,null,68,140,null,null,null,null,null,null,null,null,null,null,null,null,106,112,null,null,null,null,null,null,null,null,null,null,null,null,null,null,null,120,null,null,null,null,null,null,null,null,null,null,null,null,null,null,95]
["Torkildsen","Borgar Aas","Vålerenga Ski","Kollenhopp","M NC B",null,"Akershus",{"$f":"SUM(I94+J94)","v":1172},368,{"$f":"SUM(K94:CX94)","v":804},null,null,92,null,null,null,null,null,null,null,null,null,null,null,null,null,null,null,null,112,106,null,null,null,null,null,null,null,null,null,null,null,null,null,null,null,null,null,null,null,null,null,null,null,80,56,null,null,null,null,null,null,null,103,null,null,null,null,120,135]
["Olsby ","Espen","Lensbygda Sp.klubb",null,"M NC B",null,"Oppland",{"$f":"SUM(I95+J95)","v":1136},0,{"$f":"SUM(K95:CX95)","v":1136},null,null,103,96,null,null,null,null,null,null,null,null,null,null,null,null,null,null,null,120,112,null,null,null,null,null,null,null,null,null,null,null,null,null,null,null,null,null,null,null,null,null,null,null,60,null,null,440,205]
["Fannemel ","Brede","Hornindal IL","NTG","M NC B",1996,"Sogn og Fjordane",{"$f":"SUM(I96+J96)","v":1064},287,{"$f":"SUM(K96:CX96)","v":777},null,null,96,100,null,null,null,null,null,null,null,null,null,null,null,null,null,null,null,115,100,null,null,null,null,null,null,null,null,null,null,null,null,null,null,28,null,null,null,null,null,null,null,null,56,64,null,null,null,null,null,null,null,null,null,null,null,null,103,115]
["Loe ","Jens Fredrik","Byåsen IL","Trønderhopp","M NC B ",1996,"S.Tr.lag",{"$f":"SUM(I97+J97)","v":1028},0,{"$f":"SUM(K97:CX97)","v":1028},null,null,null,null,null,null,null,null,null,null,null,null,null,null,null,null,null,null,null,null,null,null,150,103,null,null,null,null,null,null,null,null,null,null,null,null,175,140,null,null,null,null,null,null,100,175,null,null,null,null,null,null,null,140,45]
["Gangnes ","Kenneth","Kolbukameratene","Lillehammerhopp","M NC Elite",1989,"Oppland  ",{"$f":"SUM(I98+J98)","v":990},990,{"$f":"SUM(K98:CX98)","v":0}]
["Braathen","Mathias","Øvrevoll/Hosle IL","Kollenhopp","M NC B",1996,"Oslo",{"$f":"SUM(I99+J99)","v":946},743,{"$f":"SUM(K99:CX99)","v":203},null,null,100,103]
["Bukkholm ","Markus","Oddersjaa SSK","NTG","M NC B",1997,"Agder/Rogaland",{"$f":"SUM(I100+J100)","v":905},224,{"$f":"SUM(K100:CX100)","v":681},null,null,76,80,null,null,null,null,null,null,null,null,null,null,null,null,null,null,null,103,96,null,null,null,null,null,null,null,null,null,null,null,null,null,null,24,null,null,null,null,null,null,null,null,44,52,null,null,null,null,null,null,null,null,null,null,null,null,100,106]
["Malm ","Bjørnar Kristiansen","Byåsen IL","Trønderhopp","M NC B",1995,"S.Tr.lag",{"$f":"SUM(I101+J101)","v":779},115,{"$f":"SUM(K101:CX101)","v":664},null,null,null,null,null,null,null,null,null,null,null,null,null,null,null,null,null,null,null,null,null,null,106,92,null,null,null,null,null,null,null,null,null,null,null,null,135,125,null,null,null,null,null,null,null,null,null,null,null,null,null,null,null,106,55,null,null,null,null,null,null,null,null,null,null,null,null,null,45]
["Elvevold ","August","Tromsø Skiklub","Trønderhopp","M NC B",null,"Troms",{"$f":"SUM(I102+J102)","v":731},0,{"$f":"SUM(K102:CX102)","v":731},null,null,null,null,null,null,null,null,null,null,null,null,null,null,null,null,null,null,null,null,null,null,109,100,null,null,null,null,null,null,null,null,null,null,null,null,140,120,null,null,null,null,null,null,null,null,null,null,null,null,null,null,null,112,50,null,null,null,null,null,null,null,null,null,null,null,null,null,100]
["Markeng","Audun Nybu","Furnes IL","Hedmarkhopp","M NC B",1997,"Hedmark",{"$f":"SUM(I103+J103)","v":640},518,{"$f":"SUM(K103:CX103)","v":122},null,null,null,null,null,null,null,null,null,null,null,null,null,null,null,null,null,null,null,null,null,null,null,null,null,null,null,null,null,null,null,null,null,null,null,30,null,null,null,null,null,null,null,null,92]
["Kvernmo","Mats Jakob","Steinkjer Skiklubb","Trønderhopp","M NC B",null,"N.Tr.lag",{"$f":"SUM(I104+J104)","v":632},0,{"$f":"SUM(K104:CX104)","v":632},null,null,null,null,null,null,null,null,null,null,null,null,null,null,null,null,null,null,null,null,null,null,88,88,null,null,null,null,null,null,100,null,null,null,null,null,109,96,null,null,null,null,null,null,null,null,null,null,null,null,null,null,null,96,null,null,null,null,null,null,null,null,null,null,null,null,null,null,55]
["Bjerke","Knut  ","Rælingen skiklubb","Veteranhopp Norge","M NC B",1961,"Akershus",{"$f":"SUM(I105+J105)","v":560},0,{"$f":"SUM(K105:CX105)","v":560},null,null,88,88,null,null,null,null,null,null,null,null,null,null,null,null,null,null,null,109,null,null,null,null,null,null,null,null,null,null,null,null,null,null,null,null,null,null,null,null,null,null,null,null,35,null,null,null,null,null,null,null,null,null,null,null,null,null,115,125]
["Villumstad","Fredrik Eirinsønn","Skimt IL","Kollenhopp","M NC B",1999,"Akershus",{"$f":"SUM(I106+J106)","v":539},307,{"$f":"SUM(K106:CX106)","v":232},null,null,120,112]
["Ødegård","Jesper","Gausdal Skilag"," ","M NC B",1998,"Oppland",{"$f":"SUM(I107+J107)","v":530},0,{"$f":"SUM(K107:CX107)","v":530},null,null,null,null,null,null,null,null,null,null,null,null,null,null,null,null,null,null,null,null,null,null,null,null,null,null,null,null,null,null,null,null,null,null,null,null,null,null,null,null,null,null,null,null,170,180,180]
["Aasberg","Nikolai","Røykenhopp","Flying Team Vikersund","M NC B",1998,"Buskerud",{"$f":"SUM(I108+J108)","v":480},0,{"$f":"SUM(K108:CX108)","v":480},null,null,null,null,null,null,null,null,null,null,null,null,null,null,null,null,null,null,null,null,null,null,null,null,null,null,null,null,null,null,null,null,null,null,null,null,null,null,null,null,null,null,null,null,125,190,165]
["Kleven","Sander  ","Gjerpenkollen hoppklubb","Flying Team Vikersund","M NC B",null,"Buskerud",{"$f":"SUM(I109+J109)","v":472},125,{"$f":"SUM(K109:CX109)","v":347},null,null,null,null,null,null,null,null,null,null,null,null,null,null,null,null,null,null,null,null,null,null,null,null,null,null,null,null,null,null,null,null,null,null,null,null,null,null,null,null,null,null,null,null,72,100,175]
["Vethe ","Geir","Bulken IL",null,"M NC B",1977,"Hordaland",{"$f":"SUM(I110+J110)","v":459},190,{"$f":"SUM(K110:CX110)","v":269},null,null,null,null,null,null,null,null,null,null,null,null,null,null,null,null,null,null,null,null,null,null,null,null,null,null,null,null,null,null,null,null,null,null,null,null,null,null,null,null,null,null,null,null,48,null,null,null,null,null,null,null,null,null,null,null,null,null,109,112]
["Næsvold ","Leif Torbjørn","Røykenhopp","Flying Team Vikersund","M NC B",1998,"Buskerud",{"$f":"SUM(I111+J111)","v":450},84,{"$f":"SUM(K111:CX111)","v":366},null,null,null,null,null,null,null,null,null,null,null,null,null,null,null,null,null,null,null,null,null,null,null,null,null,null,null,null,null,null,null,null,null,null,null,null,null,null,null,null,null,null,null,null,130,96,140]
["Holt","Ole Henning","Sannidal IL",null,"M NC B",null,"Telemark/Vestfold",{"$f":"SUM(I112+J112)","v":418},0,{"$f":"SUM(K112:CX112)","v":418},null,null,null,null,null,null,null,null,null,null,null,null,null,null,null,null,null,null,null,100,103,null,null,null,null,null,null,null,null,null,null,null,null,null,null,null,null,null,null,null,null,null,null,null,null,null,null,null,null,null,null,null,null,null,null,null,null,null,106,109]
["Fjorden","Sander Gjesdal","Byåsen IL","Trønderhopp","M NC B",1997,"S.Tr.lag",{"$f":"SUM(I113+J113)","v":412},130,{"$f":"SUM(K113:CX113)","v":282},null,null,null,null,null,null,null,null,null,null,null,null,null,null,null,null,null,null,null,null,null,null,null,null,null,null,null,null,null,null,null,null,null,null,null,null,100,100,null,null,null,null,null,null,null,null,null,null,null,null,null,null,null,32,null,null,null,null,null,null,null,null,null,null,null,null,null,null,50]
["Bechmann","Anders","Gjerpenkollen hoppklubb",null,"M NC C",null,"Buskerud",{"$f":"SUM(I114+J114)","v":400},0,{"$f":"SUM(K114:CX114)","v":400},null,null,null,null,null,null,null,null,null,null,null,null,null,null,null,null,null,null,null,null,null,null,null,null,null,null,null,null,null,null,null,null,null,null,null,null,84,84,null,null,null,null,null,null,null,null,null,null,null,null,null,null,null,null,null,null,null,null,112,120]
["Pedersen ","Kristoffer","Stålkameratene IL","Trønderhopp","M NC B",1993,"Nordland",{"$f":"SUM(I115+J115)","v":390},0,{"$f":"SUM(K115:CX115)","v":390},null,null,null,null,null,null,null,null,null,null,null,null,null,null,null,null,null,null,null,null,null,null,null,null,null,null,null,null,null,null,null,null,null,null,null,null,130,130,null,null,null,null,null,null,null,null,null,null,null,null,null,null,null,130]
["Eriksen ","Lars Erik","Rognan IL","Granåsen skiteam","M NC B",null,"Nordland",{"$f":"SUM(I116+J116)","v":390},0,{"$f":"SUM(K116:CX116)","v":390},null,null,null,null,null,null,null,null,null,null,null,null,null,null,null,null,null,null,null,null,null,null,200,190]
["Skatvedt ","Ole Andreas","Trøgstad Skiklubb",null,"M NC B",1965,"Østfold",{"$f":"SUM(I117+J117)","v":384},0,{"$f":"SUM(K117:CX117)","v":384},null,null,null,null,null,null,null,null,null,null,null,null,null,null,null,null,null,null,null,null,109,null,null,null,null,null,null,null,null,null,null,null,null,null,null,null,null,null,null,null,null,null,null,null,null,null,null,null,null,null,null,null,null,null,null,null,null,null,130,145]
["Garberg ","Anders Bredesen","Orkdal IL","Team ST","M NC B",1997,"S.Tr.lag",{"$f":"SUM(I118+J118)","v":382},0,{"$f":"SUM(K118:CX118)","v":382},null,null,null,null,null,null,null,null,null,null,null,null,null,null,null,null,null,null,null,null,null,null,null,null,null,null,null,null,null,null,null,null,null,null,null,null,103,109,null,null,null,null,null,null,null,null,null,null,null,null,null,null,null,100,null,null,null,null,null,null,null,null,null,null,null,null,null,null,70]
["Haare","Anders Sandberg","Vikersund IF","Flying Team Vikersund","M NC B",1999,"Buskerud",{"$f":"SUM(I119+J119)","v":335},164,{"$f":"SUM(K119:CX119)","v":171},null,null,null,null,null,null,null,null,null,null,null,null,null,null,null,null,null,null,null,null,null,null,null,null,null,null,null,null,null,null,null,null,null,null,null,null,null,null,null,null,null,null,null,null,68,103]
["Grande","Sivert  ","Steinkjer SK","Trønderhopp","M NC B",null,"N.Tr.lag",{"$f":"SUM(I120+J120)","v":323},0,{"$f":"SUM(K120:CX120)","v":323},null,null,null,null,null,null,null,null,null,null,null,null,null,null,null,null,null,null,null,null,null,null,null,null,null,null,null,null,null,null,90,null,null,null,null,null,96,92,null,null,null,null,null,null,null,null,null,null,null,null,null,null,null,45]
["Ingebrigtsen ","Christian","Byåsen IL","Granåsen skiteam","M NC A",1994,"S.Tr.lag",{"$f":"SUM(I121+J121)","v":317},317,{"$f":"SUM(K121:CX121)","v":0}]
["Markeng","Thomas Aasen","Lensbygda Sp.klubb","Lillehammer hopprekrutt","M NC B",2000,"Oppland",{"$f":"SUM(I122+J122)","v":317},103,{"$f":"SUM(K122:CX122)","v":214},null,null,null,null,null,null,null,null,null,null,null,null,null,null,null,null,null,null,null,null,null,null,null,null,null,null,null,null,null,null,null,null,null,null,null,null,null,null,null,null,null,null,null,null,84,130]
["Ladehaug","Anders","Nordre Land IL","Lillehammer hopprekrutt","M NC B",null,"Oppland",{"$f":"SUM(I123+J123)","v":281},14,{"$f":"SUM(K123:CX123)","v":267},null,null,null,null,null,null,null,null,null,null,null,null,null,null,null,null,null,null,null,null,null,null,null,null,null,null,null,null,null,null,null,null,null,null,null,null,null,null,null,null,null,null,null,null,155,112]
["Wohlen ","Martin","Steinkjer Skiklubb","Team NT","M NC B",1997,"N.Tr.lag",{"$f":"SUM(I124+J124)","v":272},0,{"$f":"SUM(K124:CX124)","v":272},null,null,null,null,null,null,null,null,null,null,null,null,null,null,null,null,null,null,null,null,null,null,null,null,null,null,null,null,null,null,null,null,null,null,null,null,92,88,null,null,null,null,null,null,null,null,null,null,null,null,null,null,null,92]
["Bratlien","Jonas","Bøverbru IL",null,"M NC B",null,"Oppland",{"$f":"SUM(I125+J125)","v":272},12,{"$f":"SUM(K125:CX125)","v":260},null,null,null,null,null,null,null,null,null,null,null,null,null,null,null,null,null,null,null,null,null,null,null,null,null,null,null,null,null,null,null,null,null,null,null,null,null,null,null,null,null,null,null,null,135,125]
["Restad ","Bjørn Iver","IL Leik","Trønderhopp","M NC B",1993,"S.Tr.lag",{"$f":"SUM(I126+J126)","v":268},0,{"$f":"SUM(K126:CX126)","v":268},null,null,null,null,null,null,null,null,null,null,null,null,null,null,null,null,null,null,null,null,null,null,null,null,null,null,null,null,null,null,null,null,null,null,null,null,115,103,null,null,null,null,null,null,null,null,null,null,null,null,null,null,null,50]
["Strøm","Jørgen Oliver","Alta IF","Hedmarkhopp","M NC B",2000,"Finnmark",{"$f":"SUM(I127+J127)","v":267},0,{"$f":"SUM(K127:CX127)","v":267},null,null,null,null,null,null,null,null,null,null,null,null,null,null,null,null,null,null,null,null,null,null,null,null,null,null,null,null,null,null,null,null,null,null,null,null,null,null,null,null,null,null,null,null,175,92]
["Leirvaag","Håkon","Botne SK","NTG","M NC B",null,"Vestfold/Telemark",{"$f":"SUM(I128+J128)","v":266},140,{"$f":"SUM(K128:CX128)","v":126},null,null,null,null,null,null,null,null,null,null,null,null,null,null,null,null,null,null,null,null,null,null,null,null,null,null,null,null,null,null,null,null,null,null,null,26,null,null,null,null,null,null,null,null,40,60]
["Søtvik","Sindre Ure","Eldar IL","Lillehammer NC","M NC A",null,"Hordaland",{"$f":"SUM(I129+J129)","v":260},260,{"$f":"SUM(K129:CX129)","v":0}]
["Storlien","Gudmund","Mjøs-Ski","Lillehammer NC","M NC A",null,"Hedmark",{"$f":"SUM(I130+J130)","v":255},255,{"$f":"SUM(K130:CX130)","v":0}]
["Alstad ","Ola Dybvad","Skatval Skilag","Team NT","M NC C",null,"N.Tr.lag",{"$f":"SUM(I131+J131)","v":248},0,{"$f":"SUM(K131:CX131)","v":248},null,null,null,null,null,null,null,null,null,null,null,null,null,null,null,null,null,null,null,null,null,null,null,null,null,null,null,null,null,null,80,null,null,null,null,null,88,80]
["Hokholt","Audun  ","Skimt IL","Kollenhopp","M NC A",null,"Akershus",{"$f":"SUM(I132+J132)","v":245},245,{"$f":"SUM(K132:CX132)","v":0}]
["Riiber ","Harald Jonas","Heming IL","Kollenhopp","M NC A",1995,"Oslo",{"$f":"SUM(I133+J133)","v":235},235,{"$f":"SUM(K133:CX133)","v":0}]
["Bjørnstad","Espen","Byåsen SK","Granåsen skiteam","M NC B",null,"S.Tr.lag",{"$f":"SUM(I134+J134)","v":222},222,{"$f":"SUM(K134:CX134)","v":0}]
["Storlien","Ole Martin","Mjøs-Ski","Lillehammer NC","M NC A",null,"Hedmark",{"$f":"SUM(I135+J135)","v":185},185,{"$f":"SUM(K135:CX135)","v":0}]
["Andersen ","Espen","Lommedalen IL","Lillehammer NC","M NC A",null,"Akershus",{"$f":"SUM(I136+J136)","v":185},185,{"$f":"SUM(K136:CX136)","v":0}]
["Norseng","Haakon","IL Ivrig",null,"M NC B",null,"Telemark/Vestfold",{"$f":"SUM(I137+J137)","v":168},0,{"$f":"SUM(K137:CX137)","v":168},null,null,84,84]
["Lien","Øystein Granbu","Gausdal Skilag","Lillehammer NC","M NC A",null,"Oppland",{"$f":"SUM(I138+J138)","v":165},165,{"$f":"SUM(K138:CX138)","v":0}]
["Rastad","Morten Øgar","Hurdal IL","Lillehammerhopp","M NC B",1988,"Akershus",{"$f":"SUM(I139+J139)","v":155},0,{"$f":"SUM(K139:CX139)","v":155},null,null,null,null,null,null,null,null,null,null,null,null,null,null,null,null,null,null,null,null,null,null,null,null,null,null,null,null,null,null,null,null,null,null,null,null,null,null,null,null,null,null,null,null,155]
["Månum","Markus","Raufoss IL"," ","M NC B",1998,"Oppland",{"$f":"SUM(I140+J140)","v":152},0,{"$f":"SUM(K140:CX140)","v":152},null,null,null,null,null,null,null,null,null,null,null,null,null,null,null,null,null,null,null,null,null,null,null,null,null,null,null,null,null,null,null,null,null,null,null,null,null,null,null,null,null,null,null,null,76,76]
["Skeie","Sondre","Bulken","Lillehammerhopp","M NC B",1993,"Hordaland",{"$f":"SUM(I141+J141)","v":145},145,{"$f":"SUM(K141:CX141)","v":0}]
["Sommerstad","Rolf Ole","Tolga IL","Lillehammerhopp","M NC A",1992,"Hedmark",{"$f":"SUM(I142+J142)","v":120},0,{"$f":"SUM(K142:CX142)","v":120},null,null,null,null,null,null,null,null,null,null,null,null,null,null,null,null,null,null,null,null,null,null,null,null,null,null,null,null,null,null,null,null,null,null,null,null,null,null,null,null,null,null,null,null,52,68]
["Waaler","Mads Kristoffer","Aurskog/Finstadbru","Lillehammer NC","M NC A",null,"Akershus",{"$f":"SUM(I143+J143)","v":115},115,{"$f":"SUM(K143:CX143)","v":0}]
["Johansen","Truls S","Elverum Hopp","Lillehammer NC","M NC A",null,"Hedmark",{"$f":"SUM(I144+J144)","v":100},100,{"$f":"SUM(K144:CX144)","v":0}]
["Heimdal","Oddgeir","Raufoss IL",null,"M NC B",null,"Oppland",{"$f":"SUM(I145+J145)","v":95},0,{"$f":"SUM(K145:CX145)","v":95},null,null,null,null,null,null,null,null,null,null,null,null,null,null,null,null,null,null,null,null,null,null,null,null,null,null,null,null,null,null,null,null,null,null,null,null,null,null,null,null,null,null,null,null,45,50]
["Ringstad","Lars","Skogn IL","Granåsen skiteam","M NC B",1996,"N.Tr.lag",{"$f":"SUM(I146+J146)","v":92},0,{"$f":"SUM(K146:CX146)","v":92},null,null,null,null,null,null,null,null,null,null,null,null,null,null,null,null,null,null,null,null,null,null,92]
["Myhr","Sverre Aas","Søre Ål IL",null,"M NC B",1998,"Oppland",{"$f":"SUM(I147+J147)","v":92},0,{"$f":"SUM(K147:CX147)","v":92},null,null,null,null,null,null,null,null,null,null,null,null,null,null,null,null,null,null,null,null,null,null,null,null,null,null,null,null,null,null,null,null,null,null,null,null,null,null,null,null,null,null,null,null,null,92]
["Lislegaard","Geir Rune","Skoppum IL"," ","M NC C",1963,"Vestfold/Telemark",{"$f":"SUM(I148+J148)","v":85},0,{"$f":"SUM(K148:CX148)","v":85},null,null,null,null,null,null,null,null,null,null,null,null,null,null,null,null,null,null,null,null,null,null,null,null,null,null,null,null,null,null,null,null,null,null,null,null,null,null,null,null,null,null,null,null,40,45]
["Slåttsveen","Lars Andreas","Kolbukameratene",null,"M NC C",null,"Oppland",{"$f":"SUM(I149+J149)","v":72},0,{"$f":"SUM(K149:CX149)","v":72},null,null,null,null,null,null,null,null,null,null,null,null,null,null,null,null,null,null,null,null,null,null,null,null,null,null,null,null,null,null,null,null,null,null,null,null,null,null,null,null,null,null,null,null,32,40]
["Fredheim ","Ove","Hafslo IL","Veteranhopp Norge","M NC C",null,"Hordaland",{"$f":"SUM(I150+J150)","v":63},0,{"$f":"SUM(K150:CX150)","v":63},null,null,null,null,null,null,null,null,null,null,null,null,null,null,null,null,null,null,null,null,null,null,null,null,null,null,null,null,null,null,null,null,null,null,null,null,null,null,null,null,null,null,null,null,28,35]
["Hansen","Pål Teodor","Rognan IL","Trønderhopp","M NC C",null,"Nordland",{"$f":"SUM(I151+J151)","v":60},0,{"$f":"SUM(K151:CX151)","v":60},null,null,null,null,null,null,null,null,null,null,null,null,null,null,null,null,null,null,null,null,null,null,null,null,null,null,null,null,null,null,null,null,null,null,null,null,null,null,null,null,null,null,null,null,null,null,null,null,null,null,null,null,null,null,null,null,null,null,null,null,null,null,null,null,null,null,null,null,60]
["Tillung","Stian","Vargar IL"," ","M NC C",1990,"Hordaland",{"$f":"SUM(I152+J152)","v":50},0,{"$f":"SUM(K152:CX152)","v":50},null,null,null,null,null,null,null,null,null,null,null,null,null,null,null,null,null,null,null,null,null,null,null,null,null,null,null,null,null,null,null,null,null,null,null,null,null,null,null,null,null,null,null,null,50]
["Smeland","Håvard  ","Vegårdshei IL","Trønderhopp","M NC C",null,"Agder/Rogaland",{"$f":"SUM(I153+J153)","v":40},0,{"$f":"SUM(K153:CX153)","v":40},null,null,null,null,null,null,null,null,null,null,null,null,null,null,null,null,null,null,null,null,null,null,null,null,null,null,null,null,null,null,null,null,null,null,null,null,null,null,null,null,null,null,null,null,null,null,null,null,null,null,null,null,null,40]
["Kvandal","Even","Mosjøen IL"," ","M NC C",null,"Nordland",{"$f":"SUM(I154+J154)","v":40},0,{"$f":"SUM(K154:CX154)","v":40},null,null,null,null,null,null,null,null,null,null,null,null,null,null,null,null,null,null,null,null,null,null,null,null,null,null,null,null,null,null,null,null,null,null,null,null,null,null,null,null,null,null,null,null,null,null,null,null,null,null,null,null,null,null,null,null,null,null,null,null,null,null,null,null,null,null,null,null,40]
["Breivik","Andreas Varsi","Tromsø Skiklub",null,"M NC B",1997,"Troms",{"$f":"SUM(I155+J155)","v":35},0,{"$f":"SUM(K155:CX155)","v":35},null,null,null,null,null,null,null,null,null,null,null,null,null,null,null,null,null,null,null,null,null,null,null,null,null,null,null,null,null,null,null,null,null,null,null,null,null,null,null,null,null,null,null,null,null,null,null,null,null,null,null,null,null,35]
["Hage","Olav","Åsmarka IL","Veteranhopp Norge","M NC C",null,"Hedmark",{"$f":"SUM(I156+J156)","v":30},0,{"$f":"SUM(K156:CX156)","v":30},null,null,null,null,null,null,null,null,null,null,null,null,null,null,null,null,null,null,null,null,null,null,null,null,null,null,null,null,null,null,null,null,null,null,null,null,null,null,null,null,null,null,null,null,30]
["Gaarder","Jens","Raufoss IL",null,"M NC B",null,"Oppland",{"$f":"SUM(I157+J157)","v":24},24,{"$f":"SUM(K157:CX157)","v":0}]
["Torgersen","Hans Erik Lie","Søre Ål IL","Lillehammerhopp","M NC A",1991,"Oppland",{"$f":"SUM(I158+J158)","v":0},0,{"$f":"SUM(K158:CX158)","v":0}]
["Johansen","Marius Fredrik","Leknes&Omegn","Trønderhopp","M NC A",1989,"Nordland  ",{"$f":"SUM(I159+J159)","v":0},0,{"$f":"SUM(K159:CX159)","v":0}]
["Fannemel","Lorentz","Hornindal IL","NTG","M NC A",1994,"Sogn og Fjordane",{"$f":"SUM(I160+J160)","v":0},0,{"$f":"SUM(K160:CX160)","v":0}]
["Stea","Henning","Sogne SK","Sørlandshopp","M NC B",1995,"Agder/Rogaland",{"$f":"SUM(I161+J161)","v":0},0,{"$f":"SUM(K161:CX161)","v":0}]
["Ruud ","Eivind Østlund","Røykenhopp","Flying Team Vikersund","M NC B",1994,"Buskerud",{"$f":"SUM(I162+J162)","v":0},0,{"$f":"SUM(K162:CX162)","v":0}]
["Rodahl ","Sondre Johannes","Lommedalen IL","Kollenhopp","M NC B",1994,"Akershus",{"$f":"SUM(I163+J163)","v":0},0,{"$f":"SUM(K163:CX163)","v":0}]
["Ristad ","Mathias","Overhalla IL","Trønderhopp","M NC B",1992,"N.Tr.lag",{"$f":"SUM(I164+J164)","v":0},0,{"$f":"SUM(K164:CX164)","v":0}]
["Overrein ","Kristoffer Ertzaas","Byåsen IL","Team ST","M NC B",1997,"S.Tr.lag",{"$f":"SUM(I165+J165)","v":0},0,{"$f":"SUM(K165:CX165)","v":0}]
["Olsen","Andrè Nyeng","Byåsen IL","Granåsen skiteam","M NC B",1989,"S.Tr.lag",{"$f":"SUM(I166+J166)","v":0},0,{"$f":"SUM(K166:CX166)","v":0}]
["Mauseth","Martin Dannevig","Molde og Omegn IF",null,"M NC B",1997,"Møre&Romsdal",{"$f":"SUM(I167+J167)","v":0},0,{"$f":"SUM(K167:CX167)","v":0}]
["Håland ","Sondre","Øyestad IF","Sørlandshopp","M NC B",1995,"Agder/Rogaland",{"$f":"SUM(I168+J168)","v":0},0,{"$f":"SUM(K168:CX168)","v":0}]
["Høidal","Lars Martin","Ready","Kollenhopp","M NC B",null,"Oslo",{"$f":"SUM(I169+J169)","v":0},0,{"$f":"SUM(K169:CX169)","v":0}]
["Hasdal","Olav Haugen","Gjerstad IL","Sørlandshopp","M NC B",null,"Agder/Rogaland",{"$f":"SUM(I170+J170)","v":0},0,{"$f":"SUM(K170:CX170)","v":0}]
["Hansen","Ragnar","Byåsen IL","Granåsen skiteam","M NC B",null,"S.Tr.lag",{"$f":"SUM(I171+J171)","v":0},0,{"$f":"SUM(K171:CX171)","v":0}]
["Gyth-Dehli","Ole Fredrik","Botne SK","Lillehammerhopp","M NC B",1992,"Vestfold/Telemark",{"$f":"SUM(I172+J172)","v":0},0,{"$f":"SUM(K172:CX172)","v":0}]
["Eikehaug ","Jarle","Ørn IF","Flying Team Vikersund","M NC B",1996,"Telemark/Vestfold",{"$f":"SUM(I173+J173)","v":0},0,{"$f":"SUM(K173:CX173)","v":0}]
["Børve","Sjur Hovdal","Snøhetta IL","Granåsen skiteam","M NC B",1995,"S.Tr.lag",{"$f":"SUM(I174+J174)","v":0},0,{"$f":"SUM(K174:CX174)","v":0}]
["Buraas","Lars","Hurdal IL",null,"M NC B",1995,"Akershus",{"$f":"SUM(I175+J175)","v":0},0,{"$f":"SUM(K175:CX175)","v":0}]
["Brendryen","Aleksander","Byåsen IL","Team ST","M NC B",1996,"S.Tr.lag",{"$f":"SUM(I176+J176)","v":0},0,{"$f":"SUM(K176:CX176)","v":0}]
["Aalien ","Fredrik","Eggedal IL","Flying Team Vikersund","M NC B",1993,"Buskerud",{"$f":"SUM(I177+J177)","v":0},0,{"$f":"SUM(K177:CX177)","v":0}]
["Værås","Jon","Rollag og Veggli",null,"M NC C",null,"Buskerud",{"$f":"SUM(I178+J178)","v":0},0,{"$f":"SUM(K178:CX178)","v":0}]
["Villesvik","Stein Arne","Østre Aker skiklubb","Veteranhopp Norge","M NC C",null,"Oslo",{"$f":"SUM(I179+J179)","v":0},0,{"$f":"SUM(K179:CX179)","v":0}]
["Tenstad","Petter  ","Kongsberg IF",null,"M NC C",null,"Buskerud",{"$f":"SUM(I180+J180)","v":0},0,{"$f":"SUM(K180:CX180)","v":0}]
["Tellefsen","Jan Erik","Pors IF",null,"M NC C",null,"Telemark/Vestfold",{"$f":"SUM(I181+J181)","v":0},0,{"$f":"SUM(K181:CX181)","v":0}]
["Sørbø ","Ingebrigt","Gjerstad IL",null,"M NC C",null,"Agder/Rogaland",{"$f":"SUM(I182+J182)","v":0},0,{"$f":"SUM(K182:CX182)","v":0}]
["Søgaard","Svenn-Martin","Vallset IL","Hedmarkhopp","M NC C",null,"Hedmark  ",{"$f":"SUM(I183+J183)","v":0},0,{"$f":"SUM(K183:CX183)","v":0}]
["Skårset ","Ivar","Søre Ål IL",null,"M NC C",null,"Oppland",{"$f":"SUM(I184+J184)","v":0},0,{"$f":"SUM(K184:CX184)","v":0}]
["Ringkilen ","Torry","Horten SK","Veteranhopp Norge","M NC C",null,"Telemark/Vestfold",{"$f":"SUM(I185+J185)","v":0},0,{"$f":"SUM(K185:CX185)","v":0}]
["Lunde","Egil","Røykenhopp","Veteranhopp Norge","M NC C",null,"Buskerud",{"$f":"SUM(I186+J186)","v":0},0,{"$f":"SUM(K186:CX186)","v":0}]
["Lundby","Håkon","Kolbukameratene",null,"M NC C",null,"Oppland",{"$f":"SUM(I187+J187)","v":0},0,{"$f":"SUM(K187:CX187)","v":0}]
["Kalleberg ","Pål","Østre Aker skiklubb","Veteranhopp Norge","M NC C",null,"Oslo",{"$f":"SUM(I188+J188)","v":0},0,{"$f":"SUM(K188:CX188)","v":0}]
["Kaardal","Tom","Horten SK",null,"M NC C",null,"Telemark/Vestfold",{"$f":"SUM(I189+J189)","v":0},0,{"$f":"SUM(K189:CX189)","v":0}]
["Jørgensen ","Arne","Horten SK","Veteranhopp Norge","M NC C",null,"Telemark/Vestfold",{"$f":"SUM(I190+J190)","v":0},0,{"$f":"SUM(K190:CX190)","v":0}]
["Ilestad","Egil","Botne SK",null,"M NC C",null,"Telemark/Vestfold",{"$f":"SUM(I191+J191)","v":0},0,{"$f":"SUM(K191:CX191)","v":0}]
["Haaheim","Pål","Froland IL",null,"M NC C",null,"Agder/Rogaland",{"$f":"SUM(I192+J192)","v":0},0,{"$f":"SUM(K192:CX192)","v":0}]
["Gullbekk","Tom","Røykenhopp",null,"M NC C",null,"Buskerud",{"$f":"SUM(I193+J193)","v":0},0,{"$f":"SUM(K193:CX193)","v":0}]
["Berger ","Fredrik","Røykenhopp",null,"M NC C",null,"Buskerud",{"$f":"SUM(I194+J194)","v":0},0,{"$f":"SUM(K194:CX194)","v":0}]
["Andersen ","Per Espen","Øyestad IF",null,"M NC C",null,"Agder/Rogaland",{"$f":"SUM(I195+J195)","v":0},0,{"$f":"SUM(K195:CX195)","v":0}]
["Aas ","Erlend","Byåsen IL","Team ST","M NC C",null,"S.Tr.lag",{"$f":"SUM(I196+J196)","v":0},0,{"$f":"SUM(K196:CX196)","v":0}]

{"sheet":"Ark2","index":2,"n_rows":0,"n_cols":0,"rows_kept":0,"cut":false,"hidden":false,"merged":[]}

{"sheet":"Ark3","index":3,"n_rows":0,"n_cols":0,"rows_kept":0,"cut":false,"hidden":false,"merged":[]}